fUST/lending_fUST_20260307
["ID","MTS","AMOUNT","RATE_DAILY","PERIOD"]
[407892740,1772898675929,-500.0,0.00013699,2]
[407892741,1772898675938,-500.0,0.00013699,2]
[407892742,1772898675949,-500.0,0.00013699,2]
[407892743,1772898675959,-500.0,0.00013699,2]
[407892744,1772898675968,-500.0,0.00013699,2]
[407892745,1772898675978,-500.0,0.00013699,2]
[407892746,1772898675988,-528.91729855,0.00013699,2]
[407892747,1772898675997,-500.88815526,0.00013699,2]
[407892748,1772898676007,-598.47668584,0.00013699,2]
[407892749,1772898676016,-500.0,0.00013699,2]
[407892750,1772898676026,-500.0,0.00013699,2]
[407892751,1772898676035,-158.54797322,0.00013699,2]
[407892752,1772898676049,-303.72067577,0.00013699,2]
[407892753,1772898676062,-500.0,0.00013699,2]
[407892754,1772898676076,-500.0,0.00013699,2]
[407892755,1772898676087,-228.58619991,0.00013699,2]
[407892756,1772898676097,-500.0,0.00013699,2]
[407892757,1772898676106,-500.0,0.00013699,2]
[407892758,1772898676119,-500.0,0.00013699,2]
[407892759,1772898676128,-151.0,0.00013699,2]
[407892760,1772898676138,-151.0,0.00013699,2]
[407892761,1772898676148,-151.0,0.00013699,2]
[407892762,1772898676158,-151.0,0.00013699,2]
[407892763,1772898676169,-151.0,0.00013699,2]
[407892764,1772898676181,-151.0,0.00013699,2]
[407892765,1772898676191,-161.00239521,0.00013699,2]
[407892766,1772898676201,-500.0,0.00013699,2]
[407892767,1772898676211,-500.0,0.00013699,2]
[407892768,1772898676221,-500.0,0.00013699,2]
[407892769,1772898676231,-500.0,0.00013699,2]
[407892770,1772898676241,-500.0,0.00013699,2]
[407892771,1772898676252,-500.0,0.00013699,2]
[407892772,1772898676263,-500.0,0.00013699,2]
[407892773,1772898676274,-244.96516712,0.00013699,2]
[407892774,1772898676283,-500.0,0.00013699,2]
[407892775,1772898676292,-500.0,0.00013699,2]
[407892776,1772898676301,-166.39323955,0.00013699,2]
[407892777,1772898676311,-592.98013214,0.00013699,2]
[407892778,1772898676321,-500.0,0.00013699,2]
[407892779,1772898676330,-500.0,0.00013699,2]
[407892780,1772898676340,-500.0,0.00013699,2]
[407892781,1772898676350,-500.0,0.00013699,2]
[407892782,1772898676361,-500.0,0.00013699,2]
[407892783,1772898676370,-500.0,0.00013699,2]
[407892784,1772898676380,-500.0,0.00013699,2]
[407892785,1772898676389,-500.0,0.00013699,2]
[407892786,1772898676399,-500.0,0.00013699,2]
[407892787,1772898676408,-500.0,0.00013699,2]
[407892788,1772898676417,-500.0,0.00013699,2]
[407892789,1772898676427,-570.08165932,0.00013699,2]
[407892790,1772898676436,-500.0,0.00013699,2]
[407892791,1772898676445,-159.53990154,0.00013699,2]
[407892792,1772898676455,-500.0,0.00013699,2]
[407892793,1772898676465,-306.34850423,0.00013699,2]
[407892794,1772898676474,-161.78679777,0.00013699,2]
[407892795,1772898676483,-500.0,0.00013699,2]
[407892796,1772898676492,-500.0,0.00013699,2]
[407892797,1772898676502,-168.03912532,0.00013699,2]
[407892798,1772898676511,-500.0,0.00013699,2]
[407892799,1772898676522,-500.0,0.00013699,2]
[407892800,1772898676531,-539.08402471,0.00013699,2]
[407892801,1772898676542,-500.0,0.00013699,2]
[407892802,1772898676552,-164.9682497,0.00013699,2]
[407892803,1772898676563,-500.0,0.00013699,2]
[407892804,1772898676574,-500.0,0.00013699,2]
[407892805,1772898676584,-500.0,0.00013699,2]
[407892806,1772898676593,-500.0,0.00013699,2]
[407892807,1772898676602,-500.0,0.00013699,2]
[407892808,1772898676612,-500.0,0.00013699,2]
[407892809,1772898676620,-174.74605919,0.00013699,2]
[407892810,1772898676628,-500.0,0.00013699,2]
[407892811,1772898676637,-500.0,0.00013699,2]
[407892812,1772898676646,-159.64776468,0.00013699,2]
[407892813,1772898676654,-500.0,0.00013699,2]
[407892814,1772898676663,-500.0,0.00013699,2]
[407892815,1772898676672,-500.0,0.00013699,2]
[407892816,1772898676681,-500.0,0.00013699,2]
[407892817,1772898676689,-500.0,0.00013699,2]
[407892818,1772898676697,-2000.0,0.00013699,7]
[407892819,1772898676706,-167.46680052,0.00013699,2]
[407892820,1772898676715,-500.0,0.00013699,2]
[407892821,1772898676723,-164.80171302,0.00013699,2]
[407892822,1772898676732,-500.0,0.00013699,2]
[407892823,1772898676741,-500.0,0.00013699,2]
[407892824,1772898676750,-500.0,0.00013699,2]
[407892825,1772898676759,-500.0,0.00013699,2]
[407892826,1772898676768,-500.0,0.00013699,2]
[407892827,1772898676777,-500.0,0.00013699,2]
[407892828,1772898676786,-500.0,0.00013699,2]
[407892829,1772898676794,-500.0,0.00013699,2]
[407892830,1772898676803,-500.0,0.00013699,2]
[407892831,1772898676812,-160.67139259,0.00013699,2]
[407892832,1772898676821,-310.04817724,0.00013699,2]
[407892833,1772898676830,-500.0,0.00013699,2]
[407892834,1772898676839,-500.0,0.00013699,2]
[407892835,1772898676848,-159.35624912,0.00013699,2]
[407892836,1772898676857,-500.0,0.00013699,2]
[407892837,1772898676866,-500.0,0.00013699,2]
[407892838,1772898676875,-500.0,0.00013699,2]
[407892839,1772898676884,-151.0,0.00013699,2]
[407892840,1772898676893,-151.0,0.00013699,2]
[407892841,1772898676902,-250.53274542,0.00013699,2]
[407892842,1772898676912,-151.0,0.00013699,2]
[407892843,1772898676921,-151.0,0.00013699,2]
[407892844,1772898676931,-151.0,0.00013699,2]
[407892845,1772898676940,-151.0,0.00013699,2]
[407892846,1772898676950,-151.0,0.00013699,2]
[407892847,1772898676959,-292.85155408,0.00013699,2]
[407892848,1772898676968,-1000.0,0.00013699,2]
[407892849,1772898676977,-340.940114,0.00013699,2]
[407892850,1772898676987,-340.940114,0.00013699,2]
[407892851,1772898676996,-340.940114,0.00013699,2]
[407892852,1772898677005,-340.9401196,0.00013699,2]
[407892853,1772898677014,-295.583993,0.00013699,2]
[407892854,1772898677023,-295.583993,0.00013699,2]
[407892855,1772898677032,-295.583993,0.00013699,2]
[407892856,1772898677046,-295.583997,0.00013699,2]
[407892857,1772898677055,-334.360463,0.00013699,2]
[407892858,1772898677064,-181.70520036,0.00013699,2]
[407892859,1772898677073,-500.0,0.00013699,2]
[407892860,1772898677084,-160.0,0.000137,2]
[407892861,1772898677093,-194.87059643,0.000138,2]
[407892862,1772898677102,-1094.99582821,0.00013821,2]
[407892863,1772898677112,-443.29357419,0.00013844,7]
[407892864,1772898677121,-200.0,0.00013846,120]
[407892865,1772898677130,-550.0,0.00013864,2]
[407892866,1772898677139,-3092.96547559,0.00013876,2]
[407892867,1772898677148,-1019.89269358,0.00013893,7]
[407892868,1772898677157,-1200.0,0.000139,2]
[407892869,1772898677166,-936.67799297,0.00013915,7]
[407892870,1772898677175,-152.37089504,0.00013931,7]
[407892871,1772898677184,-361.12792267,0.00013931,7]
[407892872,1772898677194,-500.14,0.00013972,2]
[407892873,1772898677202,-500.0,0.00013973,2]
[407892874,1772898677211,-153.54818496,0.00013978,7]
[407892875,1772898677221,-168.89497338,0.00013982,7]
[407892876,1772898677230,-480.7021759,0.00013982,7]
[407892877,1772898677238,-1613.60691074,0.00013985,7]
[407892878,1772898677247,-1552.63623676,0.00013997,7]
[407892879,1772898677256,-200.0,0.00014,2]
[407892880,1772898677265,-2000.0,0.00014,2]
[407892881,1772898677274,-5000.0,0.00014,2]
[407892882,1772898677283,-4000.0,0.00014,2]
[407892883,1772898677292,-17000.0,0.00014,2]
[407892884,1772898677301,-206.19756192,0.00014004,7]
[407892885,1772898677310,-583.31458901,0.00014004,7]
[407892886,1772898677319,-596.19331906,0.00014004,7]
[407892887,1772898677328,-2000.0,0.00014014,7]
[407892888,1772898677336,-231.82887809,0.0001402,7]
[407892889,1772898677345,-264.81955111,0.0001402,7]
[407892890,1772898677354,-194.99977778,0.0001402,7]
[407892891,1772898677364,-242.85388463,0.0001409,7]
[407892892,1772898677373,-194.07952959,0.00014091,7]
[407892893,1772898677382,-2670.42621148,0.00014121,14]
[407892894,1772898677390,-443.29357419,0.00014149,7]
[407892895,1772898677399,-160.0,0.000142,2]
[407892896,1772898677409,-1019.89269358,0.00014205,14]
[407892897,1772898677417,-936.67799297,0.00014229,14]
[407892898,1772898677426,-2724.78725047,0.00014238,14]
[407892899,1772898677435,-177.31438444,0.00014246,2]
[407892900,1772898677444,-200.0,0.00014246,2]
[407892901,1772898677546,-203.17729495,0.00014246,2]
[407892902,1772898677555,-200.0,0.00014246,2]
[407892903,1772898677563,-200.0,0.00014246,2]
[407892904,1772898677572,-500.14,0.00014246,2]
[407892905,1772898677581,-500.0,0.00014247,2]
[407892906,1772898677591,-1000.0,0.00014247,2]
[407892907,1772898677600,-1000.0,0.00014247,2]
[407892908,1772898677608,-1000.0,0.00014247,2]
[407892909,1772898677617,-1000.0,0.00014247,2]
[407892910,1772898677626,-1098.04907948,0.00014247,2]
[407892911,1772898677635,-1000.0,0.00014247,2]
[407892912,1772898677644,-1000.0,0.00014247,2]
[407892913,1772898677653,-1000.0,0.00014247,2]
[407892914,1772898677662,-761.21881999,0.00014247,2]
[407892915,1772898677671,-304.17711958,0.00014247,2]
[407892916,1772898677680,-1000.0,0.00014247,2]
[407892917,1772898677689,-1000.0,0.00014247,2]
[407892918,1772898677698,-1000.0,0.00014247,2]
[407892919,1772898677707,-1000.0,0.00014247,2]
[407892920,1772898677716,-250.0,0.00014247,2]
[407892921,1772898677725,-1000.0,0.00014247,2]
[407892922,1772898677733,-1000.0,0.00014247,2]
[407892923,1772898677742,-1000.0,0.00014247,2]
[407892924,1772898677751,-923.41502258,0.00014247,2]
[407892925,1772898677760,-1000.0,0.00014247,2]
[407892926,1772898677769,-1000.0,0.00014247,2]
[407892927,1772898677778,-1000.0,0.00014247,2]
[407892928,1772898677791,-1000.0,0.00014247,2]
[407892929,1772898677801,-1050.13771613,0.00014247,2]
[407892930,1772898677810,-1000.0,0.00014247,2]
[407892931,1772898677819,-1000.0,0.00014247,2]
[407892932,1772898677828,-1000.0,0.00014247,2]
[407892933,1772898677837,-1000.0,0.00014247,2]
[407892934,1772898677846,-1000.0,0.00014247,2]
[407892935,1772898677856,-1000.0,0.00014247,2]
[407892936,1772898677867,-1000.0,0.00014247,2]
[407892937,1772898677876,-1000.0,0.00014247,2]
[407892938,1772898677885,-1000.0,0.00014247,2]
[407892939,1772898677894,-1000.0,0.00014247,2]
[407892940,1772898677904,-1000.0,0.00014247,2]
[407892941,1772898677915,-1000.0,0.00014247,2]
[407892942,1772898677926,-1122.93834415,0.00014247,2]
[407892943,1772898677936,-1000.0,0.00014247,2]
[407892944,1772898677947,-1000.0,0.00014247,2]
[407892945,1772898677956,-1000.0,0.00014247,2]
[407892946,1772898677965,-1000.0,0.00014247,2]
[407892947,1772898677974,-1000.0,0.00014247,2]
[407892948,1772898677984,-467.50580874,0.00014247,2]
[407892949,1772898677995,-618.18505378,0.00014247,2]
[407892950,1772898678005,-1000.0,0.00014247,2]
[407892951,1772898678015,-1000.0,0.00014247,2]
[407892952,1772898678024,-1000.0,0.00014247,2]
[407892953,1772898678035,-1000.0,0.00014247,2]
[407892954,1772898678048,-1000.0,0.00014247,2]
[407892955,1772898678057,-1000.0,0.00014247,2]
[407892956,1772898678067,-1000.0,0.00014247,2]
[407892957,1772898678076,-1000.0,0.00014247,2]
[407892958,1772898678087,-1000.0,0.00014247,2]
[407892959,1772898678098,-1000.0,0.00014247,2]
[407892960,1772898678107,-1000.0,0.00014247,2]
[407892961,1772898678118,-534.39845647,0.00014247,2]
[407892962,1772898678129,-1000.0,0.00014247,2]
[407892963,1772898678139,-229.63818861,0.00014247,2]
[407892964,1772898678149,-1000.0,0.00014247,2]
[407892965,1772898678158,-1000.0,0.00014247,2]
[407892966,1772898678168,-1000.0,0.00014247,2]
[407892967,1772898678177,-336.19944546,0.00014247,2]
[407892968,1772898678186,-1000.0,0.00014247,2]
[407892969,1772898678196,-260.26906533,0.00014247,2]
[407892970,1772898678206,-1000.0,0.00014247,2]
[407892971,1772898678215,-1000.0,0.00014247,2]
[407892972,1772898678224,-1000.0,0.00014247,2]
[407892973,1772898678233,-1000.0,0.00014247,2]
[407892974,1772898678242,-1000.0,0.00014247,2]
[407892975,1772898678251,-1000.0,0.00014247,2]
[407892976,1772898678260,-1000.0,0.00014247,2]
[407892977,1772898678270,-1000.0,0.00014247,2]
[407892978,1772898678279,-1000.0,0.00014247,2]
[407892979,1772898678289,-952.33863478,0.00014247,2]
[407892980,1772898678298,-1000.0,0.00014247,2]
[407892981,1772898678307,-1000.0,0.00014247,2]
[407892982,1772898678317,-1112.94377773,0.00014247,2]
[407892983,1772898678326,-1613.60691074,0.00014309,14]
[407892984,1772898678335,-2436.9500832,0.00014314,14]
[407892985,1772898678344,-1552.63623676,0.00014322,14]
[407892986,1772898678353,-2000.0,0.00014329,7]
[407892987,1772898678362,-2670.42621148,0.00014338,14]
[407892988,1772898678371,-165.96035741,0.00014353,14]
[407892989,1772898678380,-2613.28858783,0.00014381,14]
[407892990,1772898678389,-2623.48418364,0.00014397,14]
[407892991,1772898678398,-780.9107178,0.000144,12]
[407892992,1772898678408,-650.0,0.00014412,2]
[407892993,1772898678418,-2633.87476968,0.0001442,14]
[407892994,1772898678429,-3207.40519818,0.00014424,2]
[407892995,1772898678439,-151.0,0.00014433,2]
[407892996,1772898678448,-443.29357419,0.00014455,7]
[407892997,1772898678457,-171.4181021,0.00014472,14]
[407892998,1772898678467,-175.345164,0.00014487,2]
[407892999,1772898678476,-175.345164,0.00014487,2]
[407893000,1772898678485,-175.345164,0.00014487,2]
[407893001,1772898678494,-175.345172,0.00014487,2]
[407893002,1772898678504,-1019.89269358,0.00014516,14]
[407893003,1772898678513,-500.14,0.0001452,2]
[407893004,1772898678523,-500.0,0.00014521,2]
[407893005,1772898678532,-936.67799297,0.00014543,14]
[407893006,1772898678540,-2812.37317597,0.00014544,14]
[407893007,1772898678550,-2670.42621148,0.00014555,14]
[407893008,1772898678559,-361.12792267,0.00014564,14]
[407893009,1772898678568,-162.86603265,0.00014587,14]
[407893010,1772898678578,-2613.28858783,0.00014612,14]
[407893011,1772898678587,-19594.92992052,0.00014612,3]
[407893012,1772898678596,-162.14613078,0.00014619,14]
[407893013,1772898678606,-167.29567624,0.00014619,14]
[407893014,1772898678615,-480.7021759,0.00014628,14]
[407893015,1772898678624,-1613.60691074,0.00014632,14]
[407893016,1772898678633,-2000.0,0.00014644,7]
[407893017,1772898678642,-1552.63623676,0.00014646,14]
[407893018,1772898678651,-583.31458901,0.00014656,7]
[407893019,1772898678661,-596.19331906,0.00014656,14]
[407893020,1772898678670,-2724.78725047,0.00014662,14]
[407893021,1772898678679,-2545.1665868,0.00014689,14]
[407893022,1772898678688,-2628.67257309,0.00014698,14]
[407893023,1772898678697,-158.92529791,0.000147,14]
[407893024,1772898678706,-267.008962,0.0001476,2]
[407893025,1772898678715,-267.008962,0.0001476,2]
[407893026,1772898678724,-267.008962,0.0001476,2]
[407893027,1772898678733,-267.008959,0.0001476,2]
[407893028,1772898678742,-443.29357419,0.0001476,14]
[407893029,1772898678751,-2670.42621148,0.00014772,14]
[407893030,1772898678761,-151.0,0.00014772,2]
[407893031,1772898678770,-329.899878,0.00014772,2]
[407893032,1772898678779,-329.899878,0.00014772,2]
[407893033,1772898678788,-329.899878,0.00014772,2]
[407893034,1772898678798,-329.89987484,0.00014772,2]
[407893035,1772898678807,-387.574591,0.00014772,2]
[407893036,1772898678815,-387.574591,0.00014772,2]
[407893037,1772898678825,-387.574591,0.00014772,2]
[407893038,1772898678834,-387.574592,0.00014772,2]
[407893039,1772898678843,-2780.93739967,0.00014783,14]
[407893040,1772898678852,-200.85365475,0.00014794,2]
[407893041,1772898678861,-252.65473888,0.00014794,2]
[407893042,1772898678870,-500.14,0.00014794,2]
[407893043,1772898678879,-500.0,0.00014795,2]
[407893044,1772898678888,-1500.0,0.00014795,2]
[407893045,1772898678897,-462.02127172,0.00014795,2]
[407893046,1772898678907,-1500.0,0.00014795,2]
[407893047,1772898678916,-1550.26586292,0.00014795,2]
[407893048,1772898678925,-1500.0,0.00014795,2]
[407893049,1772898678935,-1395.24386803,0.00014795,2]
[407893050,1772898678944,-1500.0,0.00014795,2]
[407893051,1772898678954,-1500.0,0.00014795,2]
[407893052,1772898678963,-1184.49336692,0.00014795,2]
[407893053,1772898678972,-1500.0,0.00014795,2]
[407893054,1772898678981,-1500.0,0.00014795,2]
[407893055,1772898678991,-887.3845488,0.00014795,2]
[407893056,1772898679000,-350.0,0.00014795,2]
[407893057,1772898679009,-1500.0,0.00014795,2]
[407893058,1772898679018,-1500.0,0.00014795,2]
[407893059,1772898679027,-1500.0,0.00014795,2]
[407893060,1772898679037,-1500.0,0.00014795,2]
[407893061,1772898679050,-1500.0,0.00014795,2]
[407893062,1772898679060,-1500.0,0.00014795,2]
[407893063,1772898679069,-1500.0,0.00014795,2]
[407893064,1772898679079,-1500.0,0.00014795,2]
[407893065,1772898679088,-1500.0,0.00014795,2]
[407893066,1772898679097,-514.89986452,0.00014795,2]
[407893067,1772898679106,-1500.0,0.00014795,2]
[407893068,1772898679116,-1500.0,0.00014795,2]
[407893069,1772898679126,-1500.0,0.00014795,2]
[407893070,1772898679135,-1099.4130893,0.00014795,2]
[407893071,1772898679144,-1500.0,0.00014795,2]
[407893072,1772898679153,-1500.0,0.00014795,2]
[407893073,1772898679163,-1500.0,0.00014795,2]
[407893074,1772898679173,-1500.0,0.00014795,2]
[407893075,1772898679183,-1500.0,0.00014795,2]
[407893076,1772898679192,-1500.0,0.00014795,2]
[407893077,1772898679201,-1500.0,0.00014795,2]
[407893078,1772898679211,-1500.0,0.00014795,2]
[407893079,1772898679220,-1500.0,0.00014795,2]
[407893080,1772898679229,-1500.0,0.00014795,2]
[407893081,1772898679239,-1500.0,0.00014795,2]
[407893082,1772898679248,-1173.55753032,0.00014795,2]
[407893083,1772898679258,-1500.0,0.00014795,2]
[407893084,1772898679267,-1500.0,0.00014795,2]
[407893085,1772898679277,-1500.0,0.00014795,2]
[407893086,1772898679287,-1055.83974338,0.00014795,2]
[407893087,1772898679296,-1500.0,0.00014795,2]
[407893088,1772898679305,-1500.0,0.00014795,2]
[407893089,1772898679315,-1500.0,0.00014795,2]
[407893090,1772898679324,-1500.0,0.00014795,2]
[407893091,1772898679334,-1500.0,0.00014795,2]
[407893092,1772898679343,-1500.0,0.00014795,2]
[407893093,1772898679353,-1500.0,0.00014795,2]
[407893094,1772898679362,-1500.0,0.00014795,2]
[407893095,1772898679372,-1500.0,0.00014795,2]
[407893096,1772898679381,-1500.0,0.00014795,2]
[407893097,1772898679390,-1500.0,0.00014795,2]
[407893098,1772898679400,-1500.0,0.00014795,2]
[407893099,1772898679409,-1500.0,0.00014795,2]
[407893100,1772898679419,-1500.0,0.00014795,2]
[407893101,1772898679429,-1500.0,0.00014795,2]
[407893102,1772898679438,-1630.15431294,0.00014795,2]
[407893103,1772898679448,-1500.0,0.00014795,2]
[407893104,1772898679458,-1500.0,0.00014795,2]
[407893105,1772898679468,-1500.0,0.00014795,2]
[407893106,1772898679478,-457.76181391,0.00014795,2]
[407893107,1772898679488,-160.0,0.000148,2]
[407893108,1772898679498,-1019.89269358,0.00014828,14]
[407893109,1772898679507,-2613.28858783,0.00014842,14]
[407893110,1772898679517,-936.67799297,0.00014858,14]
[407893111,1772898679528,-2724.78725047,0.00014874,14]
[407893112,1772898679538,-2618.31216937,0.00014893,14]
[407893113,1772898679548,-1519.41982704,0.00014898,4]
[407893114,1772898679558,-598.62103421,0.000149,2]
[407893115,1772898679568,-1200.0,0.000149,2]
[407893116,1772898679580,-687.62730961,0.00014904,2]
[407893117,1772898679589,-2545.1665868,0.00014912,14]
[407893118,1772898679599,-1613.60691074,0.00014955,14]
[407893119,1772898679608,-2000.0,0.00014959,7]
[407893120,1772898679619,-750.0,0.0001496,2]
[407893121,1772898679628,-1552.63623676,0.00014971,14]
[407893122,1772898679638,-3326.07919052,0.00014972,2]
[407893123,1772898679648,-2812.37317597,0.00014977,14]
[407893124,1772898679657,-151.0,0.00014977,2]
[407893125,1772898679667,-151.0,0.00014977,2]
[407893126,1772898679677,-151.0,0.00014977,2]
[407893127,1772898679686,-278.69921,0.00014977,2]
[407893128,1772898679696,-278.69921,0.00014977,2]
[407893129,1772898679706,-278.69921,0.00014977,2]
[407893130,1772898679717,-278.699217,0.00014977,2]
[407893131,1772898679727,-2670.42621148,0.00014989,14]
[407893132,1772898679736,-151.90666989,0.00015,2]
[407893133,1772898679746,-648.51114875,0.00015,2]
[407893134,1772898679755,-200.0,0.00015,2]
[407893135,1772898679764,-2880.0,0.00015,2]
[407893136,1772898679775,-243.0,0.00015,2]
[407893137,1772898679785,-2837.0,0.00015,2]
[407893138,1772898679801,-1025.43779615,0.00015,2]
[407893139,1772898679823,-10000.0,0.00015,2]
[407893140,1772898679839,-4623.80266004,0.00015,30]
[407893141,1772898679848,-160.54,0.00015,2]
[407893142,1772898679859,-3422.47774256,0.00015,2]
[407893143,1772898679870,-1500.0,0.00015,2]
[407893144,1772898679881,-7000.0,0.00015,30]
[407893145,1772898679890,-10026.67562002,0.00015,60]
[407893146,1772898679900,-200.0,0.00015,2]
[407893147,1772898679910,-50495.0,0.00015,7]
[407893148,1772898679921,-1005.47911823,0.00015,7]
[407893149,1772898679931,-10981.0,0.00015,2]
[407893150,1772898679942,-1709.0,0.00015,2]
[407893151,1772898679952,-1611.0,0.00015,2]
[407893152,1772898679964,-1004.0,0.00015,6]
[407893153,1772898679985,-5575.03340833,0.00015,2]
[407893154,1772898680007,-195.465287,0.00015,2]
[407893155,1772898680025,-195.465287,0.00015,2]
[407893156,1772898680035,-195.465287,0.00015,2]
[407893157,1772898680050,-195.46528,0.00015,2]
[407893158,1772898680060,-151.0,0.00015,2]
[407893159,1772898680071,-151.0,0.00015,2]
[407893160,1772898680083,-157.149952,0.00015,2]
[407893161,1772898680095,-423.82889498,0.00015,2]
[407893162,1772898680105,-2780.93739967,0.00015001,14]
[407893163,1772898680118,-169.98211559,0.00015015,14]
[407893164,1772898680132,-100000.0,0.00015028,2]
[407893165,1772898680144,-443.29357419,0.00015066,14]
[407893166,1772898680156,-500.14,0.00015068,2]
[407893167,1772898680167,-500.0,0.00015068,2]
[407893168,1772898680179,-734.91217,0.00015068,2]
[407893169,1772898680189,-202.60451974,0.00015068,2]
[407893170,1772898680199,-2613.28858783,0.00015073,14]
[407893171,1772898680209,-2724.78725047,0.00015086,14]
[407893172,1772898680219,-2545.1665868,0.00015136,14]
[407893173,1772898680229,-1019.89269358,0.0001514,14]
[407893174,1772898680238,-936.67799297,0.00015172,14]
[407893175,1772898680248,-2812.37317597,0.00015193,14]
[407893176,1772898680258,-152.37089504,0.00015197,14]
[407893177,1772898680268,-361.12792267,0.00015197,14]
[407893178,1772898680277,-2670.42621148,0.00015205,14]
[407893179,1772898680287,-2780.93739967,0.00015218,14]
[407893180,1772898680296,-153.54818496,0.00015268,14]
[407893181,1772898680306,-168.89497338,0.00015273,14]
[407893182,1772898680316,-480.7021759,0.00015273,14]
[407893183,1772898680327,-2000.0,0.00015274,7]
[407893184,1772898680336,-1613.60691074,0.00015278,14]
[407893185,1772898680346,-1552.63623676,0.00015296,14]
[407893186,1772898680356,-2724.78725047,0.00015298,30]
[407893187,1772898680365,-160.0,0.000153,2]
[407893188,1772898680375,-206.19756192,0.00015307,14]
[407893189,1772898680385,-583.31458901,0.00015307,14]
[407893190,1772898680396,-596.19331906,0.00015307,14]
[407893191,1772898680406,-264.81955111,0.0001533,14]
[407893192,1772898680416,-231.82887809,0.0001533,14]
[407893193,1772898680426,-194.99977778,0.0001533,14]
[407893194,1772898680436,-500.14,0.00015342,2]
[407893195,1772898680447,-500.0,0.00015342,2]
[407893196,1772898680468,-2000.0,0.00015342,2]
[407893197,1772898680488,-916.30544592,0.00015342,2]
[407893198,1772898680501,-2000.0,0.00015342,2]
[407893199,1772898680513,-2000.0,0.00015342,2]
[407893200,1772898680524,-2143.67612693,0.00015342,2]
[407893201,1772898680533,-2000.0,0.00015342,2]
[407893202,1772898680543,-2000.0,0.00015342,2]
[407893203,1772898680555,-450.0,0.00015342,2]
[407893204,1772898680565,-1651.99905354,0.00015342,2]
[407893205,1772898680578,-1136.69690035,0.00015342,2]
[407893206,1772898680588,-2000.0,0.00015342,2]
[407893207,1772898680599,-2000.0,0.00015342,2]
[407893208,1772898680610,-2000.0,0.00015342,2]
[407893209,1772898680619,-997.63360345,0.00015342,2]
[407893210,1772898680631,-2000.0,0.00015342,2]
[407893211,1772898680643,-2000.0,0.00015342,2]
[407893212,1772898680654,-2000.0,0.00015342,2]
[407893213,1772898680665,-2000.0,0.00015342,2]
[407893214,1772898680677,-2000.0,0.00015342,2]
[407893215,1772898680687,-2000.0,0.00015342,2]
[407893216,1772898680698,-547.4118331,0.00015342,2]
[407893217,1772898680708,-947.2595189,0.00015342,2]
[407893218,1772898680718,-2000.0,0.00015342,2]
[407893219,1772898680730,-2000.0,0.00015342,2]
[407893220,1772898680741,-340.48855575,0.00015342,2]
[407893221,1772898680752,-183.40577461,0.00015342,2]
[407893222,1772898680762,-2000.0,0.00015342,2]
[407893223,1772898680772,-2000.0,0.00015342,2]
[407893224,1772898680782,-2000.0,0.00015342,2]
[407893225,1772898680793,-2000.0,0.00015342,2]
[407893226,1772898680803,-2060.51278528,0.00015342,2]
[407893227,1772898680815,-2000.0,0.00015342,2]
[407893228,1772898680826,-168.63681447,0.00015342,2]
[407893229,1772898680836,-2000.0,0.00015342,2]
[407893230,1772898680847,-2000.0,0.00015342,2]
[407893231,1772898680857,-2000.0,0.00015342,2]
[407893232,1772898680868,-2000.0,0.00015342,2]
[407893233,1772898680877,-2000.0,0.00015342,2]
[407893234,1772898680887,-2000.0,0.00015342,2]
[407893235,1772898680899,-150.41017084,0.00015342,2]
[407893236,1772898680912,-2000.0,0.00015342,2]
[407893237,1772898680923,-1746.23186557,0.00015342,2]
[407893238,1772898680936,-2000.0,0.00015342,2]
[407893239,1772898680947,-1469.17564565,0.00015342,2]